bitfinex/quotes_ETHUSD_20260113
["timestamp","ask_amount","ask_price","bid_price","bid_amount"]
[1768339029556,0.002,3204.7,3204.0,15.88611139]
[1768339029767,0.002,3204.7,3204.1,1.58861114]
[1768339030590,0.002,3204.7,3204.1,2.97472253]
[1768339030881,0.002,3204.7,3204.2,1.38611139]
[1768339031454,0.002,3204.9,3204.7,1.38611139]
[1768339031805,0.002,3205.0,3204.4,1.38611139]
[1768339031992,0.002,3205.1,3204.6,1.38611139]
[1768339032312,0.002,3205.2,3204.6,1.38611139]
[1768339032590,1.38098087,3205.4,3204.5,1.54912253]
[1768339033094,1.14540651,3205.4,3204.6,1.38611139]
[1768339033285,0.99589821,3205.4,3204.6,1.38611139]
[1768339033773,0.002,3205.5,3204.6,1.38611139]
[1768339035084,0.002,3205.5,3204.8,1.38611139]
[1768339035285,0.002,3205.5,3204.8,1.63011139]
[1768339035791,0.245,3206.0,3204.9,1.38611139]
[1768339035965,0.245,3206.0,3204.8,0.244]
[1768339035966,0.245,3206.0,3205.3,1.38691299]
[1768339037272,0.245,3206.1,3205.4,1.43753946]
[1768339037472,1.1617868,3206.1,3205.4,1.43753946]
[1768339039022,0.245,3206.1,3205.4,1.43753946]
[1768339040812,0.002,3206.3,3205.4,1.43753946]
[1768339042074,1.15763544,3206.3,3205.4,1.43753946]
[1768339042276,1.15763544,3206.3,3205.3,0.2448016]
[1768339042277,0.002,3206.3,3205.6,1.43753946]
[1768339044205,1.4073943,3206.7,3205.8,1.43753946]
[1768339045500,5.83696052,3206.3,3205.5,14.744]
[1768339045698,5.83696052,3206.3,3205.6,1.4744]
[1768339045901,1.16897915,3206.2,3205.6,1.4744]
[1768339046414,4.67124956,3206.3,3205.6,1.4744]
[1768339046829,3.36347662,3206.7,3205.7,1.43753946]
[1768339046830,5.84022871,3206.6,3205.7,1.43753946]
[1768339047410,1.16897915,3206.6,3205.7,1.43753946]
[1768339047586,1.16897915,3206.6,3205.8,1.72873341]
[1768339048608,0.002,3206.3,3205.8,1.72873341]
[1768339049828,1.18373202,3206.3,3205.8,0.29119395]
[1768339050197,0.002,3206.6,3205.9,1.43753946]
[1768339050622,4.67124956,3206.3,3205.8,0.29119395]
[1768339050822,1.18483711,3206.2,3205.9,0.17297334]
[1768339051024,4.67124956,3206.3,3205.8,1.72873341]
[1768339051338,0.002,3206.6,3205.8,1.72873341]
[1768339052047,0.00642866,3206.6,3205.8,1.72873341]
[1768339052405,0.002,3206.6,3205.8,1.72873341]
[1768339055208,0.002,3206.6,3205.8,1.43753946]
[1768339055435,0.002,3206.8,3206.0,1.47630817]
[1768339055647,0.002,3206.8,3206.0,1.72030817]
[1768339055648,0.02360748,3206.8,3206.0,1.72030817]
[1768339055845,0.002,3206.8,3206.0,1.72030817]
[1768339059146,0.002,3206.8,3206.2,1.47630817]
[1768339059334,0.002,3206.8,3206.1,14.5]
[1768339059335,0.002,3206.8,3206.4,1.47630817]
[1768339059532,0.002,3206.8,3206.3,1.59763082]
[1768339059739,0.002,3206.8,3206.3,3.07393899]
[1768339060261,0.002,3206.8,3206.4,1.47630817]
[1768339060766,0.002,3206.8,3206.3,1.59763082]
[1768339061835,4.71782668,3206.6,3206.1,0.001]
[1768339062659,0.04657712,3206.6,3206.1,0.001]
[1768339062861,0.04908933,3206.8,3206.1,0.001]
[1768339064974,0.002,3206.8,3206.1,1.47730817]
[1768339067733,0.002,3207.2,3206.9,1.47630817]
[1768339068636,0.002,3207.2,3206.6,0.244]
[1768339068832,0.002,3207.2,3206.7,1.64833899]
[1768339070149,0.002,3207.2,3206.7,16.14833899]
[1768339071042,0.002,3207.2,3206.8,1.47630817]
[1768339071767,0.002,3207.2,3206.7,0.17203082]
[1768339071969,0.05349121,3207.2,3206.7,0.17203082]
[1768339072272,0.002,3206.9,3206.8,1.49160308]
[1768339072471,0.002,3207.2,3206.8,1.49160308]
[1768339073040,0.002,3207.2,3206.8,2.96791125]
[1768339073962,0.002,3207.2,3206.8,1.49160308]
[1768339077778,0.002,3207.2,3206.7,0.17203082]
[1768339077959,0.002,3207.2,3206.7,1.64833899]
[1768339080486,0.05495005,3207.6,3206.8,1.47630817]
[1768339080782,3.11943174,3207.8,3206.8,1.47630817]
[1768339080968,3.11943174,3207.8,3206.7,0.17203082]
[1768339080969,3.17479047,3207.8,3207.0,1.47630817]
[1768339081279,0.05535873,3207.7,3207.0,1.47630817]
[1768339082060,3.17286791,3207.7,3207.0,1.47630817]
[1768339082260,3.11750918,3207.7,3207.0,1.47630817]
[1768339084176,3.11940133,3207.8,3207.0,1.47630817]
[1768339084410,3.17594268,3207.8,3207.0,1.64042238]
[1768339084786,0.002,3207.5,3207.0,1.64042238]
[1768339086595,0.002,3207.8,3207.5,1.36607868]
[1768339087455,0.002,3207.8,3207.0,0.40811421]
[1768339087650,0.002,3207.8,3207.2,1.36607868]
[1768339087885,0.002,3207.8,3207.4,1.36607868]
[1768339091591,0.002,3207.8,3207.5,1.36607868]
[1768339095267,0.002,3207.8,3207.1,1.36607868]
[1768339096610,0.002,3207.8,3207.4,1.36607868]
[1768339096778,0.002,3207.8,3207.3,0.001]
[1768339096779,0.002,3207.5,3207.3,0.001]
[1768339096984,0.002,3207.8,3207.3,1.40713028]
[1768339099619,6.04416158,3207.6,3206.1,0.43862735]
[1768339099798,0.04096751,3207.8,3206.1,0.43862735]
[1768339099799,4.66146218,3207.3,3206.2,1.65013028]
[1768339099996,4.66146218,3207.3,3206.4,1.40613028]
[1768339100384,3.11798453,3207.2,3206.4,1.40613028]
[1768339100680,4.50068393,3207.2,3206.4,1.40613028]
[1768339100922,3.11798453,3207.2,3206.4,1.40613028]
[1768339101219,3.36271996,3207.5,3206.4,1.58765461]
[1768339101633,4.74541936,3207.5,3206.4,1.58765461]
[1768339101783,0.002,3207.9,3206.4,1.58765461]
[1768339102116,3.11934852,3207.9,3206.6,1.40613028]
[1768339102284,4.50202546,3207.9,3206.6,1.40613028]
[1768339102692,1.3846994,3207.8,3206.6,1.40613028]
[1768339102896,4.66146218,3207.6,3206.6,1.40613028]
[1768339103099,1.3826994,3207.5,3206.4,0.42552433]
[1768339103505,1.3826994,3207.5,3206.4,1.83165461]
[1768339103914,1.3826994,3207.5,3206.5,1.40613028]
[1768339104525,4.50045242,3207.5,3206.5,1.40613028]
[1768339104714,4.50045242,3207.5,3206.6,1.58929574]
[1768339105235,0.76413515,3207.8,3206.6,1.58929574]
[1768339105236,4.50211292,3207.8,3206.6,1.58929574]
[1768339105534,1.3826994,3207.7,3206.6,1.58929574]
[1768339105935,1.3826994,3207.6,3206.6,1.58929574]
[1768339106445,6.04416158,3206.7,3206.1,0.001]
[1768339106750,3.11817898,3207.0,3206.1,1.40713028]
[1768339106889,0.245,3206.8,3206.1,1.40713028]
[1768339107331,1.3826994,3206.7,3206.1,0.001]
[1768339107636,0.245,3206.8,3206.1,1.40713028]
[1768339108325,0.002,3207.8,3206.4,1.40713028]
[1768339108490,6.23680524,3207.8,3206.6,1.40613028]
[1768339108694,6.23680524,3207.8,3206.5,0.244]
[1768339108695,0.245,3207.7,3206.7,1.57114331]
[1768339108890,0.002,3207.5,3206.7,1.57114331]
[1768339112729,0.00080168,3208.9,3207.8,1.40613028]
[1768339112917,1.38269941,3209.2,3206.7,0.16501303]
[1768339112918,5.80858084,3209.2,3208.1,1.40613028]
[1768339113121,3.69708037,3209.1,3208.5,0.00080176]
[1768339113316,3.69708037,3209.1,3208.1,1.40613028]
[1768339113317,4.66146218,3208.8,3208.1,1.40613028]
[1768339113827,0.00080176,3208.9,3208.1,1.40613028]
[1768339114030,0.24580176,3208.9,3208.1,1.40613028]
[1768339114198,0.00080176,3208.9,3208.1,1.40613028]
[1768339115603,0.00080176,3208.9,3208.3,1.43657815]
[1768339119731,0.00080176,3208.9,3208.2,0.16501303]
[1768339119931,1.03622963,3208.8,3207.5,0.244]
[1768339120140,0.245,3208.7,3207.5,1.68057815]
[1768339120434,0.245,3208.7,3207.8,1.43657815]
[1768339120623,0.245,3208.7,3207.5,0.244]
[1768339120624,0.002,3208.6,3207.5,1.68057815]
[1768339120821,0.002,3208.6,3207.7,1.43657815]
[1768339121028,0.002,3208.6,3207.5,0.244]
[1768339121325,0.002,3208.6,3207.5,1.68057815]
[1768339123255,0.247,3208.6,3207.7,1.43657815]
[1768339123457,0.002,3208.6,3207.7,1.43657815]
[1768339123869,0.002,3208.6,3207.9,1.43657815]
[1768339124614,0.002,3208.6,3207.8,0.60980403]
[1768339124615,0.002,3208.6,3208.1,1.43657815]
[1768339125158,0.16243778,3210.8,3208.9,1.43657815]
[1768339125360,6.4753355,3210.1,3208.9,1.43657815]
[1768339125510,0.89273355,3210.0,3208.9,1.43657815]
[1768339125824,6.23072368,3209.9,3208.9,1.43657815]
[1768339126214,4.66146218,3209.3,3208.5,0.00080184]
[1768339126410,6.23072368,3209.9,3208.5,1.43737999]
[1768339126607,0.245,3209.8,3208.5,1.43737999]
[1768339126823,0.64757237,3209.7,3208.5,1.43737999]
[1768339127053,0.245,3209.6,3208.5,1.43737999]
[1768339127961,6.23150022,3209.5,3208.7,1.43657815]
[1768339128117,10.88722738,3209.5,3208.7,1.43657815]
[1768339128317,4.65572716,3209.2,3208.5,0.00080184]
[1768339128522,15.05457556,3209.5,3208.5,0.00080184]
[1768339128523,4.65572716,3208.9,3208.5,0.00080184]
[1768339128731,0.245,3208.8,3208.5,0.00080184]
[1768339128909,4.65572716,3209.4,3208.5,0.00080184]
[1768339129414,0.245,3209.3,3208.5,0.00080184]
[1768339129644,9.34725033,3209.5,3208.5,0.00080184]
[1768339129838,1.28506949,3209.4,3208.5,1.43737999]
[1768339130440,12.29841756,3210.2,3209.4,1.43657815]
[1768339130441,0.002,3210.2,3209.4,1.43657815]
[1768339130639,3.13616839,3211.7,3209.3,1.43657815]
[1768339130640,1.45948653,3210.3,3209.3,1.43657815]
[1768339130817,1.45948653,3210.1,3209.3,1.43657815]
[1768339132449,1.45948653,3210.1,3208.5,14.50080184]
[1768339132651,0.41544865,3210.2,3208.5,0.00080184]
[1768339132652,1.45948653,3209.4,3208.5,0.00080184]
[1768339132819,0.245,3209.3,3208.5,0.00080184]
[1768339133021,0.002,3209.0,3208.5,0.00080184]
[1768339135366,0.62540828,3209.0,3208.5,0.00080184]
[1768339135863,2.08489481,3209.0,3208.5,0.00080184]
[1768339136360,1.45948653,3208.9,3208.5,0.00080184]
[1768339136728,1.45948653,3210.5,3208.5,1.43737999]
[1768339136993,1.45948653,3210.1,3208.5,0.00080184]
[1768339137264,1.45948653,3209.9,3208.5,0.00080184]
[1768339137431,1.70448653,3209.8,3208.6,14.5]
[1768339137840,3.11526479,3210.0,3208.6,14.5]
[1768339138040,1.46148653,3210.6,3208.7,0.03116526]
[1768339138247,1.46148653,3210.6,3208.6,14.5]
[1768339138248,6.22955924,3210.5,3208.6,14.5]
[1768339138527,6.22955924,3210.5,3208.6,30.0]
[1768339138528,6.47455924,3210.5,3208.6,30.0]
[1768339138727,6.47455924,3210.5,3208.5,5.9031109]
[1768339138728,6.47455924,3210.5,3208.8,7.073999]
[1768339138952,6.47455924,3210.5,3209.3,14.5]
[1768339140068,1.45948653,3210.4,3209.3,14.5]
[1768339141269,7.68943387,3210.3,3209.3,14.5]
[1768339141445,0.245,3210.2,3209.3,14.5]
[1768339141651,0.245,3210.2,3209.4,1.45]
[1768339141953,7.68943387,3210.3,3209.4,1.45]
[1768339142148,0.245,3210.2,3209.4,1.45]
[1768339143068,3.11516775,3210.1,3209.4,1.45]
[1768339144437,3.11516775,3210.1,3209.0,4.136869]
[1768339144633,3.11516775,3210.1,3209.1,14.5]
[1768339145270,3.11716775,3210.1,3209.1,14.5]
[1768339146873,3.11716775,3210.1,3208.8,0.001]
[1768339146874,1.58319711,3210.0,3208.8,0.001]
[1768339147077,9.34750325,3210.1,3208.8,0.001]
[1768339147078,1.54456331,3209.8,3208.8,0.001]
[1768339147293,1.09307004,3209.9,3208.8,0.001]
[1768339147294,1.78956331,3209.7,3208.8,0.001]
[1768339147447,6.23130608,3209.6,3208.8,0.001]
[1768339147872,7.77586939,3209.6,3208.8,0.001]
[1768339149082,1.54456331,3209.5,3208.8,0.001]
[1768339150556,4.66035801,3209.5,3208.8,0.001]
[1768339150864,3.1157947,3209.5,3208.8,0.001]
[1768339151058,6.2315894,3209.5,3208.8,0.001]
[1768339152560,0.245,3209.4,3208.8,1.54795572]
[1768339152871,6.2309178,3209.8,3208.8,0.001]
[1768339153182,1.78956331,3209.7,3208.8,0.001]
[1768339153961,1.82819711,3209.7,3208.5,0.00080184]
[1768339154253,1.54456331,3208.8,3206.8,5.685855]
[1768339154451,1.54456331,3208.6,3206.9,14.5]
[1768339154655,7.77800571,3208.5,3207.0,2.0185855]
[1768339156081,1.54456331,3208.4,3207.0,2.0185855]
[1768339156655,7.77839431,3208.3,3207.0,2.0185855]
[1768339156858,0.245,3208.2,3207.0,2.0185855]
[1768339157053,1.78956331,3208.2,3207.0,2.0185855]
[1768339157257,1.54456331,3208.1,3207.3,0.001]
[1768339158495,1.52910561,3207.9,3206.5,1.54695572]
[1768339158799,1.52910561,3207.7,3205.7,1.51946146]
[1768339158959,1.52910561,3207.5,3205.7,16.01946146]
[1768339159153,1.70651617,3207.5,3205.7,16.01946146]
[1768339159681,1.70651617,3207.5,3205.7,14.501]
[1768339160682,1.52910561,3207.3,3205.7,14.501]
[1768339162965,1.52910561,3207.1,3205.7,14.501]
[1768339163195,1.52910561,3206.9,3205.7,14.501]
[1768339164400,1.70651617,3206.9,3205.7,14.501]
[1768339165096,1.52910561,3206.7,3205.7,14.501]
[1768339166601,1.52910561,3206.7,3205.7,0.001]
[1768339167198,1.52910561,3206.5,3205.7,0.001]
[1768339167360,0.245,3206.4,3205.7,0.001]
[1768339167690,1.77410561,3206.4,3205.7,0.001]
[1768339169687,1.52910561,3206.2,3205.7,0.001]
[1768339169891,1.52910561,3206.2,3206.0,0.001]
[1768339170054,1.52910561,3206.2,3205.7,0.001]
[1768339170256,2.64216475,3206.2,3205.7,0.001]
[1768339171509,3.11915159,3206.0,3205.7,0.001]
[1768339171678,0.245,3205.9,3205.7,0.001]
[1768339172977,0.245,3205.8,3205.7,0.001]
[1768339173707,0.16692318,3205.8,3205.7,0.001]
[1768339174210,0.13157499,3205.8,3205.7,0.001]
[1768339178539,6.23716677,3206.6,3205.8,0.04672562]
[1768339178722,3.11823948,3207.0,3205.8,0.04672562]
[1768339178723,0.245,3206.5,3205.8,0.04672562]
[1768339178894,1.57881654,3207.0,3205.8,0.04672562]
[1768339179094,1.82381654,3206.9,3205.8,0.04672562]
[1768339179431,1.82381654,3206.9,3205.9,0.15870931]
[1768339179925,1.57881654,3206.7,3205.8,0.04672562]
[1768339180524,1.57881654,3206.7,3205.8,14.54672562]
[1768339181930,6.2371359,3206.6,3205.8,0.04672562]
[1768339182097,0.0386338,3206.5,3205.8,0.04672562]
[1768339182435,0.245,3206.4,3205.8,0.04672562]
[1768339182811,1.82381654,3206.4,3205.8,0.04672562]
[1768339183012,0.0386338,3206.3,3205.8,0.04672562]
[1768339183207,1.57881654,3206.3,3205.8,0.04672562]
[1768339183527,1.76506157,3206.3,3205.7,0.001]
[1768339184292,6.23791404,3206.2,3205.7,0.001]
[1768339184903,1.57881654,3206.1,3205.3,0.0008016]
[1768339185125,1.57881654,3205.9,3205.3,0.0008016]
[1768339185325,1.82381654,3205.8,3204.3,4.58544063]
[1768339185524,1.57881654,3205.6,3204.3,4.58544063]
[1768339185827,1.57881654,3205.6,3204.3,3.04607319]
[1768339186433,1.57881654,3205.4,3204.3,3.04607319]
[1768339186604,0.245,3205.3,3204.4,0.30460732]
[1768339186806,1.82381654,3205.3,3204.4,0.30460732]
[1768339187130,0.245,3205.2,3204.4,1.84397476]
[1768339188008,0.245,3205.1,3204.4,1.84397476]
[1768339188804,0.245,3205.1,3204.4,0.30460732]
[1768339189008,6.485086,3205.1,3204.3,3.04607319]
[1768339189338,4.94384399,3205.1,3204.0,1.53936744]
[1768339189910,8.06390254,3205.1,3204.0,1.53936744]
[1768339190543,1.57881654,3205.0,3203.9,0.001]
[1768339190908,1.57881654,3204.8,3203.9,0.001]
[1768339191313,1.57881654,3204.7,3203.9,0.001]
[1768339191513,0.245,3204.6,3203.9,0.001]
[1768339193535,3.36553316,3204.6,3203.9,0.001]
[1768339193849,3.36553316,3204.6,3204.3,0.001]
[1768339194221,0.245,3204.6,3204.3,0.001]
[1768339195453,3.11996593,3205.2,3204.3,0.001]
[1768339195454,4.6989814,3205.0,3204.3,0.001]
[1768339195623,0.245,3204.9,3204.3,0.001]
[1768339195827,0.245,3204.8,3204.3,0.001]
[1768339197148,1.57881654,3205.4,3204.3,0.001]
[1768339197458,6.23986022,3205.2,3204.3,0.001]
[1768339197646,0.46984547,3205.3,3204.3,1.54036744]
[1768339197846,1.57961814,3205.7,3204.3,1.54036744]
[1768339197847,0.245,3205.4,3204.3,1.54036744]
[1768339198364,0.0008016,3205.7,3204.3,1.54036744]
[1768339198531,0.245,3205.6,3204.3,1.54036744]
[1768339198736,0.0008016,3205.7,3204.5,1.53936744]
[1768339198937,0.245,3205.6,3204.7,1.53936744]
[1768339199457,0.0008016,3205.7,3204.7,1.53936744]
[1768339199657,0.245,3205.5,3204.7,1.53936744]
[1768339201125,0.0008016,3205.7,3204.7,1.53936744]
[1768339201323,0.0008016,3205.7,3204.8,1.53936744]
[1768339201555,0.0008016,3205.7,3205.0,1.53936744]
[1768339202429,0.0008016,3205.7,3204.9,0.24446702]
[1768339202633,1.57961814,3205.7,3204.4,1.78336744]
[1768339202837,0.0008016,3205.7,3204.4,1.78336744]
[1768339204434,1.57961814,3205.7,3204.4,1.78336744]
[1768339204641,1.57881654,3205.5,3203.9,0.001]
[1768339204837,0.0008016,3205.7,3203.9,0.001]
[1768339204838,1.57881654,3205.3,3203.9,0.001]
[1768339205041,1.649513,3205.1,3203.9,0.001]
[1768339205256,1.6881468,3205.0,3203.9,0.001]
[1768339205461,1.649513,3205.3,3203.9,0.001]
[1768339205660,3.11993011,3205.2,3203.9,0.001]
[1768339205862,3.15856391,3205.2,3203.9,0.001]
[1768339206063,3.11993011,3205.2,3203.9,0.001]
[1768339207146,0.245,3205.1,3204.1,1.55756543]
[1768339209273,0.245,3205.0,3204.1,1.55756543]
[1768339211179,0.245,3205.0,3204.1,1.26504819]
[1768339212279,0.0008016,3205.7,3204.2,1.55756543]
[1768339212466,0.0008016,3205.7,3205.0,1.60430505]
[1768339217386,0.002,3205.4,3205.0,1.60430505]
[1768339217595,0.0028016,3205.7,3205.0,0.04673962]
[1768339219397,1.80752128,3206.6,3205.3,1.53428868]
[1768339220253,1.56252128,3206.5,3205.3,1.53428868]
[1768339220475,1.56252128,3206.5,3205.3,0.00080168]
[1768339220679,1.56252128,3206.5,3205.3,0.41028185]
[1768339221089,1.56252128,3206.5,3205.3,1.94376885]
[1768339221260,0.245,3206.4,3205.3,1.94376885]
[1768339222094,1.56252128,3206.8,3205.4,1.533487]
[1768339222295,0.245,3206.6,3205.4,1.533487]
[1768339222597,1.56252128,3206.8,3205.5,1.81839416]
[1768339222802,0.245,3206.7,3205.5,1.81839416]
[1768339223168,0.002,3207.0,3205.5,1.81839416]
[1768339223372,0.002,3207.2,3206.0,1.533487]
[1768339223570,1.56452128,3207.2,3206.1,0.244]
[1768339223803,1.56252128,3207.0,3206.0,0.244]
[1768339224304,1.56252128,3207.0,3205.5,0.28490716]
[1768339224305,1.56252128,3207.0,3205.6,0.244]
[1768339224800,0.245,3206.9,3205.6,1.777487]
[1768339226704,0.15845213,3207.2,3206.2,1.533487]
[1768339226705,0.002,3207.2,3206.2,1.533487]
[1768339226907,1.56452128,3207.5,3206.3,6.49800339]
[1768339227200,1.56452128,3207.5,3206.4,13.333002]
[1768339227504,0.002,3207.5,3206.4,8.880016]
[1768339227674,0.00080184,3208.9,3206.6,24.598574]
[1768339227675,1.80752128,3208.4,3206.6,24.598574]
[1768339228970,1.80752128,3208.4,3206.6,1.533487]
[1768339229176,1.56252128,3208.3,3206.7,3.3973487]
[1768339229378,1.80752128,3208.3,3206.7,2.24298277]
[1768339229578,1.56252128,3208.3,3206.8,0.46549577]
[1768339229779,1.80752128,3208.3,3206.7,2.21729397]
[1768339230030,3.11652878,3208.7,3207.3,1.533487]
[1768339230031,1.56252128,3208.7,3207.3,1.533487]
[1768339230304,1.56252128,3208.7,3207.5,7.563785]
[1768339230698,1.56252128,3208.7,3207.5,1.533487]
[1768339230903,0.002,3208.8,3207.5,1.533487]
[1768339233018,1.56252128,3210.3,3208.5,1.533487]
[1768339233175,0.002,3210.4,3208.5,0.24480192]
[1768339233176,1.56252128,3209.7,3208.5,0.24480192]
[1768339233372,1.56252128,3209.5,3208.5,0.24480192]
[1768339233586,0.77954962,3209.6,3208.5,0.24480192]
[1768339233907,0.002,3209.8,3208.5,1.77828892]
[1768339234114,3.11747355,3209.8,3208.5,1.77828892]
[1768339234580,4.67999483,3209.8,3208.5,1.77828892]
[1768339235282,1.71465592,3209.7,3208.5,0.24480192]
[1768339235782,3.11565304,3209.6,3208.5,0.24480192]
[1768339236183,8.76525073,3209.6,3208.5,0.24480192]
[1768339236411,1.71465592,3209.5,3208.5,0.24480192]
[1768339237418,1.71465592,3209.3,3208.5,0.24480192]
[1768339237909,4.83064896,3209.3,3208.5,0.24480192]
[1768339238089,4.83064896,3209.3,3208.5,0.00080192]
[1768339238289,1.71465592,3209.3,3208.5,0.00080192]
[1768339239421,4.83064719,3209.3,3208.5,0.00080192]
[1768339240340,5.62529041,3209.3,3208.5,0.00080192]
[1768339240513,2.50929914,3209.3,3208.5,0.00080192]
[1768339241023,1.71465592,3209.2,3208.5,0.00080192]
[1768339242015,1.71465592,3209.2,3208.8,0.001]
[1768339242305,3.11613848,3209.1,3208.8,0.001]
[1768339242509,3.99029027,3209.1,3208.8,0.001]
[1768339243119,5.70494619,3209.1,3208.8,0.001]
[1768339243319,8.82108467,3209.1,3208.8,0.001]
[1768339243490,1.71465592,3209.0,3208.8,0.001]
[1768339244318,4.83090771,3209.0,3208.8,0.001]
[1768339244682,1.71465592,3209.0,3208.8,0.001]
[1768339244878,4.83089492,3209.0,3208.8,0.001]
[1768339245617,1.71545784,3208.9,3207.5,5.689683]
[1768339245814,1.71545784,3208.9,3207.7,0.43980697]
[1768339245815,0.245,3208.8,3207.7,0.43980697]
[1768339246040,0.245,3208.8,3207.8,14.5]
[1768339246837,3.11652694,3208.7,3207.8,14.5]
[1768339249449,6.23293339,3208.8,3207.8,14.5]
[1768339249761,0.81933912,3208.7,3207.8,14.5]
[1768339251250,1.71465592,3208.6,3207.8,14.5]
[1768339251437,3.1167212,3208.5,3207.8,14.5]
[1768339251842,3.36165793,3208.6,3207.8,14.5]
[1768339252175,6.47831586,3208.6,3207.8,14.5]
[1768339252329,0.90123109,3208.5,3207.8,14.5]
[1768339252529,1.71465592,3208.4,3207.8,14.5]
[1768339252856,1.71465592,3208.4,3207.4,0.244]
[1768339253153,1.71465592,3208.4,3207.5,14.5]
[1768339253553,7.94848692,3208.3,3207.5,14.5]
[1768339253752,0.79484869,3208.2,3207.5,14.5]
[1768339254052,1.95965592,3208.1,3207.5,14.5]
[1768339254451,1.95965592,3208.1,3207.0,0.244]
[1768339254823,1.95965592,3208.1,3207.1,14.5]
[1768339256231,4.8318629,3208.0,3207.1,14.5]
[1768339256554,3.11720698,3208.0,3207.1,14.5]
[1768339256855,0.245,3208.1,3207.2,1.62781956]
[1768339257021,0.245,3208.1,3207.2,1.59663972]
[1768339257226,0.245,3208.1,3207.3,0.03117887]
[1768339257426,0.245,3208.1,3207.4,14.5]
[1768339257642,0.245,3208.1,3207.5,0.03117692]
[1768339257846,4.83171075,3208.2,3207.4,14.5]
[1768339258257,4.83171075,3208.2,3207.0,0.244]
[1768339258258,4.8318629,3208.0,3207.0,0.244]
[1768339258554,3.11720698,3208.0,3207.0,1.84063972]
[1768339258754,3.11720698,3208.0,3207.1,16.09663972]
[1768339258953,0.81936782,3208.2,3207.1,16.09663972]
[1768339259258,4.18139543,3208.2,3207.2,2.03644669]
[1768339259459,4.18139543,3208.2,3207.3,1.59663972]
[1768339259957,4.18139543,3208.2,3207.4,14.5]
[1768339260358,3.1167212,3208.5,3207.6,1.59663972]
[1768339260562,4.83179053,3208.9,3207.6,1.84063972]
[1768339260731,6.2334843,3208.9,3207.8,1.59663972]
[1768339260942,7.94814022,3208.9,3207.9,14.5]
[1768339261272,1.71465592,3208.8,3207.9,14.5]
[1768339261477,1.71465592,3208.6,3207.9,14.5]
[1768339262377,1.71465592,3208.6,3208.1,4.65781779]
[1768339262671,0.245,3208.8,3208.1,4.65781779]
[1768339263374,8.19321804,3208.9,3207.9,14.5]
[1768339263775,5.07683794,3208.9,3207.9,14.5]
[1768339263944,5.89614203,3208.9,3207.9,16.10966397]
[1768339264721,5.65114203,3208.9,3207.9,16.10966397]
[1768339264980,5.89614203,3208.9,3207.9,16.10966397]
[1768339265474,4.83183794,3208.9,3207.9,3.21145175]
[1768339265674,4.83183794,3208.9,3208.1,1.60278778]
[1768339265675,0.00080192,3208.9,3208.1,1.60278778]
[1768339266049,0.00080192,3208.9,3208.2,14.5]
[1768339266446,0.002,3208.6,3208.2,14.5]
[1768339266645,1.66083027,3208.6,3208.2,14.5]
[1768339266951,1.66083027,3208.6,3208.1,0.001]
[1768339266952,1.65883027,3208.4,3208.1,0.001]
[1768339267998,0.002,3208.6,3208.1,0.001]
[1768339268690,0.24780192,3208.9,3208.1,0.001]
[1768339268691,0.00280192,3208.9,3208.2,0.244]
[1768339269065,0.00280192,3208.9,3208.3,14.5]
[1768339269248,1.66163219,3208.9,3208.3,15.9745]
[1768339270991,1.66163219,3208.9,3208.3,14.5]
[1768339271201,1.65883027,3208.8,3208.3,14.5]
[1768339272053,1.65883027,3208.8,3208.1,0.001]
[1768339272253,1.65883027,3208.6,3208.1,0.001]
[1768339273165,3.1167212,3208.5,3208.1,0.001]
[1768339273373,1.65883027,3208.4,3208.1,0.001]
[1768339275286,4.77566117,3208.4,3208.1,0.001]
[1768339275483,1.65883027,3208.4,3208.1,0.001]
[1768339275996,4.77566474,3208.4,3208.1,0.001]
[1768339276284,1.65883027,3208.4,3208.1,0.001]
[1768339279177,1.65883027,3208.4,3208.2,0.001]
[1768339280796,4.77566667,3208.4,3208.2,0.001]
[1768339281370,1.62969175,3208.3,3208.2,0.001]
[1768339282463,1.63169175,3208.6,3208.2,0.001]
[1768339282668,1.87669175,3208.6,3208.2,0.001]
[1768339282895,0.002,3208.6,3208.2,0.001]
[1768339285301,0.002,3208.6,3208.2,4.65693676]
[1768339285491,0.002,3208.6,3208.3,0.46579368]
[1768339287002,1.63249367,3208.9,3208.3,0.46579368]
[1768339287221,1.63249367,3208.9,3208.4,14.5]
[1768339291607,1.63249367,3208.9,3208.5,0.001]
[1768339293000,1.62969175,3208.8,3208.5,0.001]
[1768339296013,0.002,3209.5,3208.7,9.38172758]
[1768339296216,0.002,3209.5,3209.0,0.48722215]
[1768339296217,1.71269418,3209.4,3209.0,0.48722215]
[1768339298212,1.71269418,3209.3,3209.0,0.48722215]
[1768339299226,0.002,3209.5,3209.0,0.48722215]
[1768339299411,1.71469418,3209.5,3209.0,0.48722215]
[1768339300116,1.71469418,3209.5,3208.7,0.244]
[1768339300117,1.71269418,3209.3,3208.5,0.001802]
[1768339300418,1.71269418,3209.3,3208.6,14.5]
[1768339300596,1.71269418,3209.3,3208.7,1.4501802]
[1768339302010,1.71269418,3209.2,3208.6,14.5]
[1768339302245,1.71269418,3209.2,3208.5,0.001802]
[1768339303420,0.002,3209.5,3209.1,4.65593676]
[1768339303716,0.002,3209.5,3208.8,4.65593676]
[1768339303922,0.002,3209.5,3208.9,0.48999368]
[1768339304428,0.002,3209.0,3208.9,0.48999368]
[1768339304624,1.71469418,3209.3,3208.9,0.48999368]
[1768339305218,1.70193155,3209.3,3208.9,0.48999368]
[1768339305417,1.71469418,3209.5,3208.9,0.48999368]
[1768339305722,0.002,3209.5,3209.0,0.51469304]
[1768339306011,0.002,3209.5,3209.3,0.04067579]
[1768339308247,1.71469418,3209.5,3208.8,0.001]
[1768339308404,1.71269418,3209.3,3208.8,0.001]
[1768339308716,1.71269418,3209.1,3208.8,0.001]
[1768339310923,3.11617789,3209.1,3208.8,0.001]
[1768339311087,0.245,3209.2,3208.8,0.001]
[1768339313246,0.245,3209.1,3208.8,0.001]
[1768339313394,0.245,3209.4,3208.8,0.001]